bitfinex-derivatives/quotes_BNBF0:USTF0_20250221
["timestamp","ask_amount","ask_price","bid_price","bid_amount"]
[1740148273022,1.09656902,664.63,662.88,0.30171373]
[1740148273224,1.91764361,664.62,662.88,0.30171373]
[1740148273415,1.09656902,664.61,662.88,0.30171373]
[1740148273619,1.91764361,664.6,662.88,0.30171373]
[1740148273819,1.09656902,664.59,662.88,0.30171373]
[1740148274018,0.82107459,664.6,662.88,0.30171373]
[1740148274019,1.91764361,664.58,662.88,0.30171373]
[1740148274222,1.09656902,664.57,662.88,0.30171373]
[1740148274422,1.09656902,664.56,662.88,0.30171373]
[1740148274621,1.09656902,664.55,662.88,0.30171373]
[1740148274825,1.91764361,664.54,662.88,0.30171373]
[1740148275127,1.09656902,664.53,662.88,0.30171373]
[1740148275320,1.09656902,664.52,662.88,0.30171373]
[1740148275525,1.09656902,664.51,662.88,0.30171373]
[1740148275719,1.09656902,664.5,662.88,0.30171373]
[1740148276024,1.91764361,664.49,662.88,0.30171373]
[1740148276226,1.91764361,664.48,662.88,0.30171373]
[1740148276421,1.09656902,664.47,662.88,0.30171373]
[1740148276619,0.82107459,664.48,662.88,0.30171373]
[1740148276818,1.344,664.82,662.88,0.30171373]
[1740148277024,1.0983489,664.81,662.88,0.30171373]
[1740148277229,1.0983489,664.8,662.88,0.30171373]
[1740148277427,1.0983489,664.79,662.88,0.30171373]
[1740148277625,1.0983489,664.78,662.88,0.30171373]
[1740148277928,1.0983489,664.77,662.88,0.30171373]
[1740148278228,1.0983489,664.76,662.88,0.30171373]
[1740148278426,1.0983489,664.75,662.88,0.30171373]
[1740148278730,1.0983489,664.74,662.88,0.30171373]
[1740148279026,1.9196083,664.73,662.88,0.30171373]
[1740148279227,1.0983489,664.72,662.88,0.30171373]
[1740148279421,1.0983489,664.71,662.88,0.30171373]
[1740148279621,1.0983489,664.7,662.89,1.57159093]
[1740148279826,1.0983489,664.69,662.89,1.57159093]
[1740148280021,1.0983489,664.68,662.89,1.57159093]
[1740148280321,1.0983489,664.67,662.89,1.57159093]
[1740148280525,1.0983489,664.66,662.91,0.30170007]
[1740148280721,1.0983489,664.65,662.91,0.30170007]
[1740148280922,1.9196083,664.64,662.91,0.30170007]
[1740148281228,1.0983489,664.63,662.91,0.30170007]
[1740148281429,0.8212594,664.64,662.91,0.30170007]
[1740148281629,1.92622526,664.63,662.91,0.30170007]
[1740148281830,1.10241956,664.62,662.91,0.30170007]
[1740148282127,1.92622526,664.61,662.91,0.30170007]
[1740148282329,1.10241956,664.6,662.91,0.30170007]
[1740148282531,1.10241956,664.59,662.91,0.30170007]
[1740148282722,1.344,664.82,662.91,0.30170007]
[1740148282723,1.92622526,664.58,662.91,0.30170007]
[1740148282926,1.10241956,664.57,662.91,0.30170007]
[1740148283123,1.92622526,664.56,662.91,0.30170007]
[1740148283324,1.10241956,664.55,662.91,0.30170007]
[1740148283527,1.10241956,664.54,662.91,0.30170007]
[1740148283828,1.92622526,664.53,662.91,0.30170007]
[1740148284029,1.10241956,664.52,663.19,1.33726993]
[1740148284228,1.92622526,664.51,663.21,0.3015636]
[1740148284429,1.10241956,664.5,663.21,0.3015636]
[1740148284622,0.8238057,664.51,663.21,0.3015636]
[1740148284827,1.10457774,664.5,663.21,0.3015636]
[1740148285023,1.10457774,664.49,663.21,0.3015636]
[1740148285225,1.344,664.82,663.21,0.3015636]
[1740148285426,1.10492665,664.81,663.21,0.3015636]
[1740148285623,1.10492665,664.8,663.21,0.3015636]
[1740148285824,1.10492665,664.79,663.21,0.3015636]
[1740148286025,1.10492665,664.78,663.21,0.3015636]
[1740148286227,1.10492665,664.77,663.21,0.3015636]
[1740148286427,1.93071157,664.76,663.21,0.3015636]
[1740148286623,1.10492665,664.75,663.21,0.3015636]
[1740148286824,1.93071157,664.74,663.21,0.3015636]
[1740148287030,1.10492665,664.73,663.21,0.3015636]
[1740148287330,1.10492665,664.72,663.22,1.33726993]
[1740148287533,1.10492665,664.71,663.24,0.30154996]
[1740148287727,1.10492665,664.7,663.24,0.30154996]
[1740148287928,1.93071157,664.69,663.24,0.30154996]
[1740148288128,1.10492665,664.68,663.24,0.30154996]
[1740148288328,1.10492665,664.67,663.24,0.30154996]
[1740148288528,1.93071157,664.66,663.24,0.30154996]
[1740148288731,1.10492665,664.65,663.24,0.30154996]
[1740148288932,0.82578492,664.65,663.24,0.30154996]
[1740148289530,5.76474284,665.72,663.24,0.30154996]
[1740148289724,4.70889754,665.71,663.24,0.30154996]
[1740148289927,4.70890206,665.7,663.24,0.30154996]
[1740148290126,5.55139762,665.69,663.24,0.30154996]
[1740148290337,0.30044917,665.67,663.42,1.33726993]
[1740148290532,4.42434456,665.66,663.53,0.30141817]
[1740148290731,4.42434456,665.65,663.53,0.30141817]
[1740148290933,0.30046722,665.63,663.53,0.30141817]
[1740148291234,7.71334176,665.62,663.53,0.30141817]
[1740148291430,0.30048076,665.6,663.53,0.30141817]
[1740148291630,5.25095748,665.59,663.53,0.30141817]
[1740148291831,0.30049431,665.57,663.53,0.30141817]
[1740148292129,5.25283488,665.56,663.56,1.33726993]
[1740148292332,4.42622196,665.55,663.56,1.33726993]
[1740148292529,4.42622196,665.54,663.56,1.33726993]
[1740148292730,1.10665195,665.53,663.56,1.33726993]
[1740148292933,1.10654822,665.52,663.56,1.33726993]
[1740148293235,1.93316114,665.51,663.56,1.33726993]
[1740148293438,1.40707414,665.5,663.58,0.30139546]
[1740148293628,2.23369157,665.49,663.58,0.30139546]
[1740148293828,4.72825069,665.48,663.58,0.30139546]
[1740148294031,4.7282552,665.47,663.58,0.30139546]
[1740148294237,4.72825972,665.46,663.58,0.30139546]
[1740148294431,4.72826424,665.45,663.58,0.30139546]
[1740148294637,4.42771574,665.44,663.58,0.30139546]
[1740148294837,3.32116752,665.43,663.58,0.30139546]
[1740148295037,1.93385649,665.42,663.58,0.30139546]
[1740148295238,4.42979232,665.41,663.58,0.30139546]
[1740148295434,1.93385649,665.4,663.58,0.30139546]
[1740148295633,1.10724357,665.39,663.58,0.30139546]
[1740148295838,1.93385649,665.38,663.58,0.30139546]
[1740148296033,1.10724357,665.37,663.63,1.33726993]
[1740148296231,1.10724357,665.36,663.65,0.30136367]
[1740148296436,1.93385649,665.35,663.65,0.30136367]
[1740148296738,1.10724357,665.34,663.65,0.30136367]
[1740148296939,1.10798142,665.33,663.65,0.30136367]
[1740148297134,1.93459434,665.32,663.65,0.30136367]
[1740148297334,1.10798142,665.31,663.71,1.33726993]
[1740148297535,1.93459434,665.3,663.71,1.33726993]
[1740148297733,1.10798142,665.29,663.71,1.33726993]
[1740148297936,1.10798142,665.28,663.71,1.33726993]
[1740148298137,1.10798142,665.27,663.71,1.33726993]
[1740148298340,1.10798142,665.26,663.71,1.33726993]
[1740148298533,1.93459434,665.25,663.71,1.33726993]
[1740148298836,1.10798142,665.24,663.71,1.33726993]
[1740148299036,1.10798142,665.23,663.71,1.33726993]
[1740148299238,0.82661292,665.24,663.65,0.30136367]
[1740148299239,1.10798142,665.22,663.65,0.30136367]
[1740148299438,1.93459434,665.21,663.65,0.30136367]
[1740148299633,1.10798142,665.2,663.65,0.30136367]
[1740148299836,1.93459434,665.19,663.65,0.30136367]
[1740148300040,1.10798142,665.18,663.65,0.30136367]
[1740148300238,1.10798142,665.17,663.65,0.30136367]
[1740148300439,4.43412786,665.16,663.65,0.30136367]
[1740148300640,1.10798142,665.15,663.65,0.30136367]
[1740148300936,1.10798142,665.14,663.65,0.30136367]
[1740148301136,1.10798142,665.13,663.65,0.30136367]
[1740148301439,1.10798142,665.12,663.65,0.30136367]
[1740148301644,0.3005485,665.45,663.65,0.30136367]
[1740148301645,1.93459434,665.11,663.65,0.30136367]
[1740148301940,4.43442237,665.1,663.65,0.30136367]
[1740148302135,4.43442237,665.09,663.65,0.30136367]
[1740148302337,4.43442237,665.08,663.65,0.30136367]
[1740148302538,4.43442237,665.07,663.65,0.30136367]
[1740148302842,4.43442237,665.06,663.65,0.30136367]
[1740148303041,5.26103529,665.05,663.65,0.30136367]
[1740148303240,4.43442237,665.04,663.65,0.30136367]
[1740148303537,4.43442237,665.03,663.65,0.30136367]
[1740148303741,1.10798142,665.02,663.65,0.30136367]
[1740148303935,1.93459434,665.01,663.65,0.30136367]
[1740148304137,1.93459434,665.0,663.65,0.30136367]
[1740148304338,1.10798142,664.99,663.65,0.30136367]
[1740148304642,1.93459434,664.98,663.65,0.30136367]
[1740148304943,1.93459434,664.97,663.65,0.30136367]
[1740148305143,1.10798142,664.96,663.65,0.30136367]
[1740148305346,1.10798142,664.95,663.65,0.30136367]
[1740148305542,1.10798142,664.94,663.65,0.30136367]
[1740148305739,1.10798142,664.93,663.65,0.30136367]
[1740148305945,1.93459434,664.92,663.65,0.30136367]
[1740148306144,1.10798142,664.91,663.65,0.30136367]
[1740148306346,1.93459434,664.9,663.65,0.30136367]
[1740148306647,1.10798142,664.89,663.65,0.30136367]
[1740148306846,1.10798142,664.88,663.65,0.30136367]
[1740148307147,1.93459434,664.87,663.65,0.30136367]
[1740148307346,1.93459434,664.86,663.65,0.30136367]
[1740148307547,1.10798142,664.85,663.65,0.30136367]
[1740148307747,1.10798142,664.84,663.65,0.30136367]
[1740148307946,1.10798142,664.83,663.65,0.30136367]
[1740148308144,1.10909561,664.82,663.65,0.30136367]
[1740148308345,1.10909561,664.81,663.65,0.30136367]
[1740148308547,1.10909561,664.8,663.65,0.30136367]
[1740148308745,1.10909561,664.79,663.65,0.30136367]
[1740148308947,1.93570853,664.78,663.65,0.30136367]
[1740148309142,1.10909561,664.77,663.65,0.30136367]
[1740148309344,1.10909561,664.76,663.65,0.30136367]
[1740148309643,1.10909561,664.75,663.65,0.30136367]
[1740148309844,1.10909561,664.74,663.65,0.30136367]
[1740148310040,1.10909561,664.73,663.65,0.30136367]
[1740148310244,1.93570853,664.72,663.65,0.30136367]
[1740148310448,1.10909561,664.71,663.65,0.30136367]
[1740148310646,0.82661292,664.72,663.65,0.30136367]
[1740148310647,1.10909561,664.7,663.65,0.30136367]
[1740148310848,1.10909561,664.69,663.65,0.30136367]
[1740148311147,1.93570853,664.68,663.65,0.30136367]
[1740148311344,1.10909561,664.67,663.65,0.30136367]
[1740148311545,1.10909561,664.66,663.65,0.30136367]
[1740148311745,1.10909561,664.65,663.65,0.30136367]
[1740148311946,1.10909561,664.64,663.65,0.30136367]
[1740148312142,1.10909561,664.63,663.65,0.30136367]
[1740148312346,1.10909561,664.62,663.65,0.30136367]
[1740148312547,1.10909561,664.61,663.65,0.30136367]
[1740148312742,1.10909561,664.6,663.65,0.30136367]
[1740148313049,1.93570853,664.59,663.65,0.30136367]
[1740148313347,1.10909561,664.58,663.65,0.30136367]
[1740148313549,1.10909561,664.57,663.65,0.30136367]
[1740148313749,0.82661292,664.58,663.65,0.30136367]
[1740148313950,0.82661292,664.56,663.65,0.30136367]
[1740148314147,1.11137319,664.55,663.65,0.30136367]
[1740148314348,1.93798611,664.54,663.65,0.30136367]
[1740148314548,1.11137319,664.53,663.65,0.30136367]
[1740148314745,1.11137319,664.52,663.65,0.30136367]
[1740148315045,0.82661292,664.53,663.65,0.30136367]
[1740148315046,1.11137319,664.51,663.65,0.30136367]
[1740148315245,1.93798611,664.5,663.65,0.30136367]
[1740148315446,1.11137319,664.49,663.65,0.30136367]
[1740148315649,1.11137319,664.48,663.65,0.30136367]
[1740148315849,1.11137319,664.47,663.65,0.30136367]
[1740148316052,1.11137319,664.46,663.65,0.30136367]
[1740148316350,1.93798611,664.45,663.65,0.30136367]
[1740148316551,1.93798611,664.44,663.65,0.30136367]
[1740148316751,1.93798611,664.43,663.65,0.30136367]
[1740148316947,1.93798611,664.42,663.65,0.30136367]
[1740148317151,1.93798611,664.41,663.65,0.30136367]
[1740148317353,1.11137319,664.4,663.65,0.30136367]
[1740148317543,0.82661292,664.41,663.65,0.30136367]
[1740148317544,1.93798611,664.39,663.65,0.30136367]
[1740148317745,1.93798611,664.38,663.65,0.30136367]
[1740148317947,1.93798611,664.37,663.65,0.30136367]
[1740148318146,1.93798611,664.36,663.65,0.30136367]
[1740148318350,1.93798611,664.35,663.65,0.30136367]
[1740148318550,1.11137319,664.34,663.65,0.30136367]
[1740148318845,1.93798611,664.33,663.65,0.30136367]
[1740148319050,1.93966347,664.32,663.65,0.30136367]
[1740148319250,1.93966347,664.31,663.65,0.30136367]
[1740148319450,1.93966347,664.3,663.65,0.30136367]
[1740148319650,1.11305055,664.29,663.65,0.30136367]
[1740148319852,1.93966347,664.28,663.65,0.30136367]
[1740148320054,1.11305055,664.27,663.65,0.30136367]
[1740148320253,1.93966347,664.26,663.65,0.30136367]
[1740148320453,1.11305055,664.25,663.65,0.30136367]
[1740148320653,1.11305819,664.24,663.65,0.30136367]
[1740148320853,1.93967111,664.23,663.65,0.30136367]
[1740148321055,1.11305819,664.22,663.65,0.30136367]
[1740148321255,1.11305819,664.21,663.65,0.30136367]
[1740148321553,1.11305819,664.2,663.65,0.30136367]
[1740148321754,1.11305819,664.19,663.65,0.30136367]
[1740148322055,1.11305819,664.18,663.65,0.30136367]
[1740148322250,1.93967111,664.17,663.65,0.30136367]
[1740148322455,5.82549843,666.45,663.65,0.30136367]
[1740148322651,1.11267313,665.44,663.65,0.30136367]
[1740148322856,1.94427074,665.43,663.65,0.30136367]
[1740148323157,0.30056656,665.41,663.65,0.30136367]
[1740148323360,1.11267313,665.4,663.65,0.30136367]
[1740148323656,1.41324873,665.39,663.65,0.30136367]
[1740148323958,1.11267313,665.38,663.65,0.30136367]
[1740148324255,0.30058915,665.36,663.65,0.30136367]
[1740148324450,1.11267313,665.35,663.65,0.30136367]
[1740148324656,1.11267313,665.34,663.65,0.30136367]
[1740148324957,2.24487344,665.33,663.65,0.30136367]
[1740148325156,1.11267313,665.32,663.65,0.30136367]
[1740148325359,2.24488248,665.31,663.65,0.30136367]
[1740148325657,1.41328939,665.3,663.65,0.30136367]
[1740148325859,1.11267313,665.29,663.65,0.30136367]
[1740148326058,1.11267313,665.28,663.65,0.30136367]
[1740148326258,1.41330294,665.27,663.65,0.30136367]
[1740148326458,1.41330746,665.26,663.65,0.30136367]
[1740148326657,1.41331198,665.25,663.65,0.30136367]
[1740148326860,1.4133165,665.24,663.65,0.30136367]
[1740148327060,1.41332102,665.23,663.65,0.30136367]
[1740148327260,1.41332554,665.22,663.65,0.30136367]
[1740148327462,1.41440226,665.21,663.65,0.30136367]
[1740148327662,1.41440678,665.2,663.65,0.30136367]
[1740148327863,1.94534294,665.19,663.65,0.30136367]
[1740148328059,1.41441582,665.18,663.65,0.30136367]
[1740148328255,1.41442034,665.17,663.65,0.30136367]
[1740148328457,1.41442486,665.16,663.65,0.30136367]
[1740148328661,1.41442938,665.15,663.65,0.30136367]
[1740148328858,1.4144339,665.14,663.65,0.30136367]
[1740148329056,1.11374533,665.13,663.65,0.30136367]
[1740148329259,1.11374533,665.12,663.65,0.30136367]
[1740148329461,1.11374533,665.11,663.65,0.30136367]
[1740148329660,1.11374533,665.1,663.65,0.30136367]
[1740148329856,1.11374533,665.09,663.65,0.30136367]
[1740148330161,1.94534294,665.08,663.65,0.30136367]
[1740148330462,1.11374533,665.07,663.65,0.30136367]
[1740148330761,1.94534294,665.06,663.65,0.30136367]
[1740148330957,1.11374533,665.05,663.65,0.30136367]
[1740148331161,1.11307057,665.04,663.65,0.30136367]
[1740148331357,1.41380888,665.03,663.65,0.30136367]
[1740148331557,1.11307057,665.02,663.65,0.30136367]
[1740148331762,1.11307057,665.01,663.65,0.30136367]
[1740148331958,1.13233592,665.03,663.65,0.30136367]
[1740148331959,1.11307057,665.0,663.65,0.30136367]
[1740148332161,1.11307057,664.99,663.65,0.30136367]
[1740148332357,1.11307057,664.98,663.65,0.30136367]
[1740148332561,1.11307057,664.97,663.65,0.30136367]
[1740148332765,1.11307057,664.96,663.65,0.30136367]
[1740148332960,1.11307057,664.95,663.65,0.30136367]
[1740148333263,1.11307057,664.94,663.65,0.30136367]
[1740148333461,1.11307057,664.93,663.65,0.30136367]
[1740148333767,1.94466818,664.92,663.65,0.30136367]
[1740148334066,1.94466818,664.91,663.65,0.30136367]
[1740148334267,1.11307057,664.9,663.65,0.30136367]
[1740148334461,1.11307057,664.89,663.65,0.30136367]
[1740148334661,1.11307057,664.88,663.65,0.30136367]
[1740148334968,1.11307057,664.87,663.65,0.30136367]
[1740148335161,0.83159761,664.9,663.65,0.30136367]
[1740148335162,1.11307057,664.86,663.65,0.30136367]
[1740148335366,1.11307057,664.85,663.65,0.30136367]
[1740148335565,1.11307057,664.84,663.65,0.30136367]
[1740148335768,1.94466818,664.83,663.65,0.30136367]
[1740148335963,1.11307057,664.82,663.65,0.30136367]
[1740148336163,1.11307057,664.81,663.65,0.30136367]
[1740148336463,1.11307057,664.8,663.65,0.30136367]
[1740148336671,1.94466818,664.79,663.65,0.30136367]
[1740148336968,1.11307057,664.78,663.65,0.30136367]
[1740148337170,1.11307057,664.77,663.65,0.30136367]
[1740148337370,1.11307057,664.76,663.65,0.30136367]
[1740148337670,1.94466818,664.75,663.65,0.30136367]
[1740148337874,1.11307057,664.74,663.65,0.30136367]
[1740148338173,0.83159761,664.75,663.65,0.30136367]
[1740148338174,1.11307057,664.73,663.65,0.30136367]
[1740148338375,1.11307057,664.72,663.65,0.30136367]
[1740148338575,1.11307057,664.71,663.65,0.30136367]
[1740148338776,1.11307057,664.7,663.65,0.30136367]
[1740148339077,1.11307057,664.69,663.65,0.30136367]
[1740148339274,1.11307057,664.68,663.65,0.30136367]
[1740148339473,1.11307057,664.67,663.65,0.30136367]
[1740148339670,1.11307057,664.66,663.65,0.30136367]
[1740148339875,1.11307057,664.65,663.65,0.30136367]
[1740148340071,1.11307057,664.64,663.65,0.30136367]
[1740148340270,1.11307057,664.63,663.65,0.30136367]
[1740148340471,1.11307057,664.62,663.65,0.30136367]
[1740148340672,1.1137708,664.61,663.65,0.30136367]
[1740148340872,1.1137708,664.6,663.65,0.30136367]
[1740148341072,1.1137708,664.59,663.65,0.30136367]
[1740148341379,1.94536841,664.58,663.65,0.30136367]
[1740148341578,1.1137708,664.57,663.65,0.30136367]
[1740148341879,1.11376713,664.56,663.65,0.30136367]
[1740148342074,1.11376713,664.55,663.65,0.30136367]
[1740148342273,1.11376713,664.54,663.65,0.30136367]
[1740148342472,1.11376713,664.53,663.65,0.30136367]
[1740148342673,1.11376713,664.52,663.65,0.30136367]
[1740148342877,1.11376713,664.51,663.65,0.30136367]
[1740148343074,1.11376713,664.5,663.65,0.30136367]
[1740148343274,1.11376713,664.49,663.65,0.30136367]
[1740148343475,1.11376713,664.48,663.65,0.30136367]
[1740148343673,1.11376713,664.47,663.65,0.30136367]
[1740148343877,1.11376713,664.46,663.65,0.30136367]
[1740148344077,1.11376713,664.45,663.65,0.30136367]
[1740148344279,1.94536474,664.44,663.65,0.30136367]
[1740148344479,1.11391753,664.43,663.65,0.30136367]
[1740148344679,1.11391753,664.42,663.65,0.30136367]
[1740148344879,1.94551514,664.41,663.65,0.30136367]
[1740148345080,1.11391753,664.4,663.65,0.30136367]
[1740148345278,1.11391753,664.39,663.65,0.30136367]
[1740148345479,1.11391753,664.38,663.65,0.30136367]
[1740148345684,0.83159761,664.39,663.65,0.30136367]
[1740148345685,1.11391753,664.37,663.65,0.30136367]
[1740148345976,1.11391753,664.36,663.65,0.30136367]
[1740148346181,1.11391753,664.35,663.65,0.30136367]
[1740148346383,1.11391753,664.34,663.65,0.30136367]
[1740148346580,0.83159761,664.35,663.65,0.30136367]
[1740148346581,1.11391753,664.33,663.65,0.30136367]
[1740148346782,1.11391753,664.32,663.65,0.30136367]
[1740148346977,1.11391753,664.31,663.65,0.30136367]
[1740148347181,1.11391753,664.3,663.65,0.30136367]
[1740148347377,1.11391753,664.29,663.65,0.30136367]
[1740148347577,1.11391753,664.28,663.65,0.30136367]
[1740148347777,1.94551514,664.27,663.65,0.30136367]
[1740148347982,1.11391753,664.26,663.65,0.30136367]
[1740148348183,1.11391753,664.25,663.65,0.30136367]
[1740148348383,1.11391753,664.24,663.65,0.30136367]
[1740148348584,1.11391753,664.23,663.65,0.30136367]
[1740148348779,1.11391753,664.22,663.65,0.30136367]
[1740148348984,0.83159761,664.23,663.65,0.30136367]
[1740148349179,1.65,664.8,663.65,0.30136367]
[1740148349384,1.11531267,664.79,663.65,0.30136367]
[1740148349579,1.11531267,664.78,663.65,0.30136367]
[1740148349779,1.11531267,664.77,663.65,0.30136367]
[1740148350079,0.83385242,664.76,663.65,0.30136367]
[1740148350286,1.11569658,664.75,663.65,0.30136367]
[1740148350486,1.11569658,664.74,663.65,0.30136367]
[1740148350687,1.949549,664.73,663.65,0.30136367]
[1740148350886,1.11569658,664.72,663.65,0.30136367]
[1740148351186,1.11569658,664.71,663.65,0.30136367]
[1740148351383,1.11569658,664.7,663.65,0.30136367]
[1740148351584,1.11569658,664.69,663.65,0.30136367]
[1740148351785,1.11569658,664.68,663.65,0.30136367]
[1740148351981,1.11569658,664.67,663.65,0.30136367]
[1740148352183,1.11569658,664.66,663.65,0.30136367]
[1740148352382,1.11569658,664.65,663.65,0.30136367]
[1740148352586,1.11569658,664.64,663.67,1.34541414]
[1740148352781,1.11569658,664.63,663.67,1.34541414]
[1740148352986,1.11569658,664.62,663.67,1.34541414]
[1740148353182,1.11569658,664.61,663.69,0.3013455]
[1740148353489,1.11569658,664.6,663.69,0.3013455]
[1740148353685,1.11569658,664.59,663.69,0.3013455]
[1740148353882,1.11569658,664.58,663.69,0.3013455]
[1740148354188,1.11569658,664.57,663.69,0.3013455]
[1740148354493,1.949549,664.56,663.69,0.3013455]
[1740148354682,1.11569658,664.55,663.69,0.3013455]
[1740148354884,1.11569658,664.54,663.69,0.3013455]
[1740148355088,1.11569658,664.53,663.72,1.34541414]
[1740148355384,1.949549,664.52,663.72,1.34541414]
[1740148355589,1.11569658,664.51,663.72,1.34541414]
[1740148355887,1.11569658,664.5,663.72,1.34541414]
[1740148356088,1.11569658,664.49,663.72,1.34541414]
[1740148356289,1.11569658,664.48,663.72,1.34541414]
[1740148356484,1.11569658,664.47,663.69,0.3013455]
[1740148356685,1.11569658,664.46,663.69,0.3013455]
[1740148356886,1.11569658,664.45,663.69,0.3013455]
[1740148357085,1.11569658,664.44,663.69,0.3013455]
[1740148357285,1.11569658,664.43,663.69,0.3013455]
[1740148357589,1.11569658,664.42,663.69,0.3013455]
[1740148357789,1.11569658,664.41,663.69,0.3013455]
[1740148357992,1.11569658,664.4,663.69,0.3013455]
[1740148358190,1.11569658,664.39,663.69,0.3013455]
[1740148358390,1.11569658,664.38,663.69,0.3013455]
[1740148358587,1.11569658,664.37,663.69,0.3013455]
[1740148358784,1.11569658,664.36,663.69,0.3013455]
[1740148358986,1.11569658,664.35,663.69,0.3013455]
[1740148359189,0.83385242,664.35,663.69,0.3013455]
[1740148359491,1.65,664.8,663.69,0.3013455]
[1740148360085,1.11823946,664.79,663.69,0.3013455]
[1740148360290,1.11823946,664.78,663.69,0.3013455]
[1740148360487,1.95407857,664.77,663.69,0.3013455]
[1740148360688,1.11823946,664.76,663.69,0.3013455]
[1740148360890,1.11823946,664.75,663.69,0.3013455]
[1740148361191,1.95407857,664.74,663.69,0.3013455]
[1740148361384,1.11823946,664.73,663.69,0.3013455]
[1740148361586,1.11823946,664.72,663.69,0.3013455]
[1740148361790,1.11823946,664.71,663.69,0.3013455]
[1740148361988,1.11823946,664.7,663.69,0.3013455]
[1740148362189,1.95407857,664.69,663.69,0.3013455]
[1740148362389,1.11823946,664.68,663.69,0.3013455]
[1740148362585,1.11823946,664.67,663.69,0.3013455]
[1740148362891,1.11823946,664.66,663.69,0.3013455]
[1740148363091,1.11823946,664.65,663.69,0.3013455]
[1740148363288,1.11823946,664.64,663.69,0.3013455]
[1740148363489,1.11823946,664.63,663.69,0.3013455]
[1740148363691,1.11823946,664.62,663.69,0.3013455]
[1740148363890,1.11823946,664.61,663.69,0.3013455]
[1740148364191,1.95407857,664.6,663.69,0.3013455]
[1740148364387,1.11823946,664.59,663.69,0.3013455]
[1740148364588,1.95407857,664.58,663.69,0.3013455]
[1740148364793,1.11823946,664.57,663.69,0.3013455]
[1740148364989,1.11823946,664.56,663.69,0.3013455]
[1740148365189,1.11842144,664.55,663.69,0.3013455]
[1740148365390,0.83583911,664.56,663.69,0.3013455]
[1740148365589,0.30073831,665.03,663.69,0.3013455]
[1740148366193,1.11868884,665.02,663.69,0.3013455]
[1740148366395,1.11868884,665.01,663.69,0.3013455]
[1740148366595,1.11868884,665.0,663.69,0.3013455]
[1740148366798,1.11868884,664.99,663.69,0.3013455]
[1740148366993,1.11868884,664.98,663.69,0.3013455]
[1740148367194,1.11868884,664.97,663.69,0.3013455]
[1740148367394,1.11868884,664.96,663.69,0.3013455]
[1740148367596,1.11868884,664.95,663.69,0.3013455]
[1740148367791,1.95486863,664.94,663.69,0.3013455]
[1740148368096,1.11868884,664.93,663.69,0.3013455]
[1740148368293,1.95486863,664.92,663.69,0.3013455]
[1740148368491,1.11868884,664.91,663.69,0.3013455]
[1740148368796,0.30073831,665.03,663.69,0.3013455]
[1740148368797,1.95486863,664.9,663.69,0.3013455]
[1740148368997,1.11868884,664.89,663.69,0.3013455]
[1740148369195,1.11868884,664.88,663.69,0.3013455]
[1740148369393,1.11868884,664.87,663.69,0.3013455]
[1740148369593,1.95486863,664.86,663.69,0.3013455]
[1740148369797,1.11868884,664.85,663.69,0.3013455]
[1740148369990,1.11868884,664.84,663.69,0.3013455]
[1740148370192,1.11868884,664.83,663.69,0.3013455]
[1740148370393,1.11910668,664.82,663.69,0.3013455]
[1740148370595,1.11910668,664.81,663.69,0.3013455]
[1740148370791,1.11910668,664.8,663.69,0.3013455]
[1740148370992,1.11910668,664.79,663.69,0.3013455]
[1740148371200,1.11910668,664.78,663.69,0.3013455]
[1740148371395,1.11910668,664.77,663.69,0.3013455]
[1740148371698,1.95528647,664.76,663.69,0.3013455]
[1740148371897,1.11910668,664.75,663.69,0.3013455]
[1740148372200,1.11910668,664.74,663.69,0.3013455]
[1740148372398,1.11910668,664.73,663.69,0.3013455]
[1740148372598,1.11910668,664.72,663.69,0.3013455]
[1740148372898,1.11910668,664.71,663.69,0.3013455]
[1740148373098,1.11910668,664.7,663.69,0.3013455]
[1740148373299,1.11910668,664.69,663.69,0.3013455]
[1740148373491,1.11910668,664.68,663.69,0.3013455]
[1740148373693,1.95528647,664.67,663.69,0.3013455]
[1740148373897,1.11910668,664.66,663.69,0.3013455]
[1740148374099,1.11910668,664.65,663.69,0.3013455]
[1740148374299,1.11910668,664.64,663.69,0.3013455]
[1740148374500,1.11910668,664.63,663.69,0.3013455]
[1740148374699,1.11910668,664.62,663.69,0.3013455]
[1740148374900,1.11910668,664.61,663.69,0.3013455]
[1740148375098,1.11910668,664.6,663.69,0.3013455]
[1740148375296,1.11910668,664.59,663.69,0.3013455]
[1740148375497,1.11910668,664.58,663.69,0.3013455]
[1740148375799,1.95528647,664.57,663.69,0.3013455]
[1740148376100,1.11910668,664.56,663.69,0.3013455]
[1740148376300,1.95528647,664.55,663.69,0.3013455]
[1740148376600,1.11910668,664.54,663.69,0.3013455]
[1740148376800,1.11910668,664.53,663.69,0.3013455]
[1740148376997,1.11910668,664.52,663.69,0.3013455]
[1740148377197,1.11910668,664.51,663.69,0.3013455]
[1740148377398,1.11910668,664.5,663.69,0.3013455]
[1740148377599,1.95528647,664.49,663.69,0.3013455]
[1740148377799,1.11910668,664.48,663.69,0.3013455]
[1740148378099,1.11910668,664.47,663.69,0.3013455]
[1740148378302,1.11910668,664.46,663.69,0.3013455]
[1740148378499,1.11910668,664.45,663.69,0.3013455]
[1740148378797,1.11910668,664.44,663.69,0.3013455]
[1740148378995,1.11910668,664.43,663.69,0.3013455]
[1740148379195,1.11910668,664.42,663.69,0.3013455]